[Event "Titled Tuesday Blitz November 08 Early 2022"]
[White "Paravyan, David"]
[Black "Artemenko, Oleg"]
[WhiteFideId "4194985"]
[BlackFideId "14201798"]
[WhiteElo "2546"]
[BlackElo "2287"]
[Result "1/2-1/2"]
[Round "05"]
[TimeControl "180+1"]
[Date "2022.11.08"]
[WhiteClock "0:00:10"]
[BlackClock "0:00:04"]

1. e4 {[%clk 0:03:00]}  e5 {[%clk 0:03:00]} 2. Nf3 {[%clk 0:03:01]}  Nc6 {[%clk 0:03:00]} 3. Nc3 {[%clk 0:03:01]}  Nf6 {[%clk 0:02:59]} 4. d4 {[%clk 0:03:02]}  exd4 {[%clk 0:03:00]} 5. Nxd4 {[%clk 0:03:03]}  Bb4 {[%clk 0:03:00]} 6. Nxc6 {[%clk 0:03:04]}  bxc6 {[%clk 0:03:01]} 7. Bd3 {[%clk 0:03:04]}  d5 {[%clk 0:02:57]} 8. exd5 {[%clk 0:03:05]}  cxd5 {[%clk 0:02:57]} 9. O-O {[%clk 0:03:04]}  O-O {[%clk 0:02:58]} 10. h3 {[%clk 0:03:04]}  Rb8 {[%clk 0:02:56]} 11. a3 {[%clk 0:02:59]}  Be7 {[%clk 0:02:44]} 12. b4 {[%clk 0:02:58]}  c5 {[%clk 0:02:40]} 13. bxc5 {[%clk 0:02:57]}  Bxc5 {[%clk 0:02:41]} 14. Bf4 {[%clk 0:02:54]}  Bd6 {[%clk 0:02:39]} 15. Qd2 {[%clk 0:02:43]}  a6 {[%clk 0:02:27]} 16. Rfe1 {[%clk 0:02:41]}  h6 {[%clk 0:02:24]} 17. Ne2 {[%clk 0:02:37]}  Qc7 {[%clk 0:02:10]} 18. Bxd6 {[%clk 0:02:36]}  Qxd6 {[%clk 0:02:11]} 19. Nd4 {[%clk 0:02:36]}  Bd7 {[%clk 0:02:12]} 20. Qa5 {[%clk 0:02:23]}  Rb6 {[%clk 0:01:56]} 21. Rab1 {[%clk 0:02:21]}  Rfb8 {[%clk 0:01:54]} 22. Rxb6 {[%clk 0:02:21]}  Rxb6 {[%clk 0:01:54]} 23. Nf3 {[%clk 0:02:06]}  Be6 {[%clk 0:01:40]} 24. Qc3 {[%clk 0:01:51]}  Rc6 {[%clk 0:01:31]} 25. Qb4 {[%clk 0:01:51]}  Qc7 {[%clk 0:01:23]} 26. Nd4 {[%clk 0:01:50]}  Rb6 {[%clk 0:01:22]} 27. Qa5 {[%clk 0:01:49]}  Qd6 {[%clk 0:01:23]} 28. Nb3 {[%clk 0:01:36]}  Ne4 {[%clk 0:01:21]} 29. Rd1 {[%clk 0:01:25]}  Qb8 {[%clk 0:01:14]} 30. Nc5 {[%clk 0:01:13]}  Rb1 {[%clk 0:01:07]} 31. Rxb1 {[%clk 0:01:14]}  Qxb1+ {[%clk 0:01:08]} 32. Kh2 {[%clk 0:01:14]}  Qb8+ {[%clk 0:01:04]} 33. Kg1 {[%clk 0:01:13]}  Qb1+ {[%clk 0:01:02]} 34. Bf1 {[%clk 0:00:55]}  Qxc2 {[%clk 0:01:01]} 35. Nxe4 {[%clk 0:00:52]}  Qxe4 {[%clk 0:00:55]} 36. Qxa6 {[%clk 0:00:51]}  d4 {[%clk 0:00:55]} 37. a4 {[%clk 0:00:42]}  Bf5 {[%clk 0:00:52]} 38. g4 {[%clk 0:00:34]}  Bg6 {[%clk 0:00:52]} 39. Qe2 {[%clk 0:00:23]}  Qxe2 {[%clk 0:00:30]} 40. Bxe2 {[%clk 0:00:24]}  Bc2 {[%clk 0:00:30]} 41. Bf3 {[%clk 0:00:12]}  d3 {[%clk 0:00:31]} 42. Be4 {[%clk 0:00:12]}  Bb1 {[%clk 0:00:23]} 43. Bf3 {[%clk 0:00:12]}  Bc2 {[%clk 0:00:10]} 44. Be4 {[%clk 0:00:13]}  Bb1 {[%clk 0:00:05]} 45. Bf3 {[%clk 0:00:10]}  Bc2 {[%clk 0:00:04]} 1/2-1/2


[Site "https://www.chess.com"]

[Event "Titled Tuesday Blitz November 08 Early 2022"]
[White "Pultinevicius, Paulius"]
[Black "Melikyan, Gnel"]
[WhiteFideId "12809390"]
[BlackFideId "54109990"]
[WhiteElo "2493"]
[BlackElo "2138"]
[Result "0-1"]
[Round "05"]
[TimeControl "180+1"]
[Date "2022.11.09"]
[WhiteClock "0:00:11"]
[BlackClock "0:00:13"]

1. d4 {[%clk 0:03:00]}  Nf6 {[%clk 0:02:59]} 2. c3 {[%clk 0:03:00]}  g6 {[%clk 0:02:57]} 3. Nf3 {[%clk 0:03:00]}  Bg7 {[%clk 0:02:55]} 4. Bg5 {[%clk 0:03:00]}  O-O {[%clk 0:02:55]} 5. Nbd2 {[%clk 0:03:00]}  d5 {[%clk 0:02:52]} 6. e3 {[%clk 0:03:00]}  c6 {[%clk 0:02:52]} 7. Be2 {[%clk 0:02:57]}  Qb6 {[%clk 0:02:52]} 8. Qb3 {[%clk 0:02:55]}  Bf5 {[%clk 0:02:51]} 9. O-O {[%clk 0:02:54]}  Nbd7 {[%clk 0:02:50]} 10. Qa3 {[%clk 0:02:52]}  Rfe8 {[%clk 0:02:48]} 11. h3 {[%clk 0:02:36]}  h6 {[%clk 0:02:31]} 12. Bf4 {[%clk 0:02:33]}  Ne4 {[%clk 0:02:30]} 13. Nxe4 {[%clk 0:02:31]}  Bxe4 {[%clk 0:02:24]} 14. Nd2 {[%clk 0:02:10]}  Bf5 {[%clk 0:02:23]} 15. Bg3 {[%clk 0:02:08]}  e5 {[%clk 0:02:21]} 16. Rfe1 {[%clk 0:02:08]}  a5 {[%clk 0:02:11]} 17. Bf1 {[%clk 0:01:57]}  a4 {[%clk 0:02:09]} 18. b4 {[%clk 0:01:28]}  axb3 {[%clk 0:02:03]} 19. Qxb3 {[%clk 0:01:28]}  Qxb3 {[%clk 0:01:48]} 20. axb3 {[%clk 0:01:27]}  exd4 {[%clk 0:01:48]} 21. cxd4 {[%clk 0:01:28]}  Bf8 {[%clk 0:01:41]} 22. Rxa8 {[%clk 0:00:52]}  Rxa8 {[%clk 0:01:39]} 23. e4 {[%clk 0:00:53]}  dxe4 {[%clk 0:01:12]} 24. Nxe4 {[%clk 0:00:54]}  Bb4 {[%clk 0:01:08]} 25. Re3 {[%clk 0:00:49]}  Ra1 {[%clk 0:01:07]} 26. Nd6 {[%clk 0:00:40]}  Be6 {[%clk 0:00:40]} 27. Nxb7 {[%clk 0:00:29]}  Rb1 {[%clk 0:00:40]} 28. Nd8 {[%clk 0:00:26]}  Bd5 {[%clk 0:00:33]} 29. Re8+ {[%clk 0:00:11]}  Kg7 {[%clk 0:00:30]} 30. f3 {[%clk 0:00:11]}  Bc3 {[%clk 0:00:25]} 31. Bf2 {[%clk 0:00:08]}  Bxb3 {[%clk 0:00:23]} 32. Re3 {[%clk 0:00:07]}  Bxd4 {[%clk 0:00:19]} 33. Re7 {[%clk 0:00:04]}  Bxf2+ {[%clk 0:00:17]} 34. Kxf2 {[%clk 0:00:04]}  Nf6 {[%clk 0:00:14]} 35. Nxc6 {[%clk 0:00:05]}  Rb2+ {[%clk 0:00:12]} 36. Re2 {[%clk 0:00:05]}  Rb1 {[%clk 0:00:12]} 37. Nd4 {[%clk 0:00:05]}  Bc4 {[%clk 0:00:12]} 38. Re1 {[%clk 0:00:06]}  Rb2+ {[%clk 0:00:12]} 39. Kg1 {[%clk 0:00:04]}  Bxf1 {[%clk 0:00:12]} 40. Rxf1 {[%clk 0:00:05]}  Nd5 {[%clk 0:00:12]} 41. Rf2 {[%clk 0:00:02]}  Rb1+ {[%clk 0:00:13]} 42. Kh2 {[%clk 0:00:03]}  Ne3 {[%clk 0:00:13]} 43. g4 {[%clk 0:00:03]}  Rd1 {[%clk 0:00:13]} 44. Ne2 {[%clk 0:00:02]}  Rd2 {[%clk 0:00:12]} 45. Kg3 {[%clk 0:00:03]}  f5 {[%clk 0:00:11]} 46. f4 {[%clk 0:00:02]}  Rd3 {[%clk 0:00:11]} 47. Kh2 {[%clk 0:00:02]}  fxg4 {[%clk 0:00:11]} 48. Ng3 {[%clk 0:00:02]}  gxh3 {[%clk 0:00:10]} 49. Kxh3 {[%clk 0:00:03]}  Nf5 {[%clk 0:00:10]} 50. Rg2 {[%clk 0:00:04]}  Kf6 {[%clk 0:00:09]} 51. Rg1 {[%clk 0:00:02]}  Rxg3+ {[%clk 0:00:09]} 52. Rxg3 {[%clk 0:00:03]}  Nxg3 {[%clk 0:00:10]} 53. Kxg3 {[%clk 0:00:04]}  Kf5 {[%clk 0:00:10]} 54. Kf3 {[%clk 0:00:05]}  h5 {[%clk 0:00:11]} 55. Kg3 {[%clk 0:00:05]}  Ke4 {[%clk 0:00:11]} 56. Kh3 {[%clk 0:00:06]}  Kxf4 {[%clk 0:00:11]} 57. Kh4 {[%clk 0:00:06]}  g5+ {[%clk 0:00:11]} 58. Kh3 {[%clk 0:00:07]}  Kf3 {[%clk 0:00:11]} 59. Kh2 {[%clk 0:00:08]}  g4 {[%clk 0:00:12]} 60. Kg1 {[%clk 0:00:09]}  g3 {[%clk 0:00:12]} 61. Kh1 {[%clk 0:00:10]}  g2+ {[%clk 0:00:11]} 62. Kg1 {[%clk 0:00:11]}  h4 {[%clk 0:00:12]} 63. Kh2 {[%clk 0:00:11]}  Kf2 {[%clk 0:00:12]} 64. Kh3 {[%clk 0:00:11]}  g1=Q {[%clk 0:00:13]} 0-1


[Site "https://www.chess.com"]

[Event "Titled Tuesday Blitz November 08 Early 2022"]
[White "Rakhmanov, Aleksandr"]
[Black "Weetik, Vjacheslav"]
[WhiteFideId "4173708"]
[BlackFideId "4153472"]
[WhiteElo "2530"]
[BlackElo "2469"]
[Result "1-0"]
[Round "05"]
[TimeControl "180+1"]
[Date "2022.11.09"]
[WhiteClock "0:00:04"]
[BlackClock "0:00:01"]

1. d4 {[%clk 0:03:00]}  Nf6 {[%clk 0:02:58]} 2. c4 {[%clk 0:03:01]}  g6 {[%clk 0:02:58]} 3. Nc3 {[%clk 0:03:01]}  Bg7 {[%clk 0:02:58]} 4. e4 {[%clk 0:03:01]}  d6 {[%clk 0:02:58]} 5. h3 {[%clk 0:03:00]}  O-O {[%clk 0:02:56]} 6. Be3 {[%clk 0:02:59]}  e5 {[%clk 0:02:54]} 7. d5 {[%clk 0:02:59]}  c6 {[%clk 0:02:54]} 8. g4 {[%clk 0:02:57]}  Na6 {[%clk 0:02:52]} 9. Qd2 {[%clk 0:02:54]}  cxd5 {[%clk 0:02:49]} 10. cxd5 {[%clk 0:02:54]}  Nc5 {[%clk 0:02:49]} 11. f3 {[%clk 0:02:54]}  h5 {[%clk 0:02:48]} 12. Nge2 {[%clk 0:02:51]}  Nh7 {[%clk 0:02:37]} 13. O-O-O {[%clk 0:02:33]}  h4 {[%clk 0:02:34]} 14. Kb1 {[%clk 0:02:31]}  Bf6 {[%clk 0:02:32]} 15. Bg2 {[%clk 0:02:25]}  Bg5 {[%clk 0:02:31]} 16. f4 {[%clk 0:02:25]}  exf4 {[%clk 0:02:30]} 17. Nxf4 {[%clk 0:02:24]}  Nd7 {[%clk 0:02:07]} 18. Nd3 {[%clk 0:02:13]}  b6 {[%clk 0:01:47]} 19. Rhe1 {[%clk 0:02:03]}  a5 {[%clk 0:01:24]} 20. e5 {[%clk 0:01:44]}  Ba6 {[%clk 0:01:14]} 21. exd6 {[%clk 0:00:48]}  Bxe3 {[%clk 0:01:02]} 22. Rxe3 {[%clk 0:00:38]}  Bxd3+ {[%clk 0:01:01]} 23. Qxd3 {[%clk 0:00:22]}  Nc5 {[%clk 0:01:01]} 24. Qd4 {[%clk 0:00:22]}  Qxd6 {[%clk 0:01:01]} 25. g5 {[%clk 0:00:17]}  Rae8 {[%clk 0:00:27]} 26. Rxe8 {[%clk 0:00:17]}  Rxe8 {[%clk 0:00:28]} 27. Qxh4 {[%clk 0:00:17]}  Re5 {[%clk 0:00:24]} 28. Qf4 {[%clk 0:00:16]}  Nd3 {[%clk 0:00:09]} 29. Qg3 {[%clk 0:00:07]}  Nc5 {[%clk 0:00:05]} 30. h4 {[%clk 0:00:08]}  Qb8 {[%clk 0:00:02]} 31. d6 {[%clk 0:00:07]}  Re8 {[%clk 0:00:02]} 32. Qf4 {[%clk 0:00:06]}  Nd7 {[%clk 0:00:02]} 33. Qd4 {[%clk 0:00:07]}  Nhf8 {[%clk 0:00:02]} 34. Nd5 {[%clk 0:00:06]}  Ne6 {[%clk 0:00:03]} 35. Qd2 {[%clk 0:00:04]}  Kf8 {[%clk 0:00:02]} 36. Nf6 {[%clk 0:00:04]}  Nxf6 {[%clk 0:00:02]} 37. gxf6 {[%clk 0:00:05]}  Rd8 {[%clk 0:00:02]} 38. Qh6+ {[%clk 0:00:05]}  Kg8 {[%clk 0:00:02]} 39. Qd2 {[%clk 0:00:04]}  Nc5 {[%clk 0:00:01]} 40. h5 {[%clk 0:00:04]}  Kf8 {[%clk 0:00:01]} 41. hxg6 {[%clk 0:00:04]}  fxg6 {[%clk 0:00:01]} 42. Qh6+ {[%clk 0:00:05]}  Ke8 {[%clk 0:00:02]} 43. Bc6+ {[%clk 0:00:04]}  Rd7 {[%clk 0:00:01]} 44. Re1+ {[%clk 0:00:04]}  Kf7 {[%clk 0:00:01]} 45. Qg7# {[%clk 0:00:04]} 1-0


[Site "https://www.chess.com"]

[Event "Titled Tuesday Blitz November 08 Early 2022"]
[White "Rios Escobar, Adan"]
[Black "Sharifov, Mekhriddin"]
[WhiteFideId "3403645"]
[BlackFideId "14701545"]
[WhiteElo "2353"]
[BlackElo "2109"]
[Result "1-0"]
[Round "05"]
[TimeControl "180+1"]
[Date "2022.11.09"]
[WhiteClock "0:00:06"]
[BlackClock "0:00:02"]

1. d4 {[%clk 0:03:00]}  Nf6 {[%clk 0:03:00]} 2. g3 {[%clk 0:03:00]}  d5 {[%clk 0:02:55]} 3. c4 {[%clk 0:02:51]}  c6 {[%clk 0:02:54]} 4. Nf3 {[%clk 0:02:51]}  Bg4 {[%clk 0:02:51]} 5. Ne5 {[%clk 0:02:48]}  Bf5 {[%clk 0:02:51]} 6. cxd5 {[%clk 0:02:41]}  cxd5 {[%clk 0:02:52]} 7. Nc3 {[%clk 0:02:37]}  e6 {[%clk 0:02:51]} 8. f3 {[%clk 0:02:35]}  Nc6 {[%clk 0:02:45]} 9. g4 {[%clk 0:02:33]}  Bg6 {[%clk 0:02:37]} 10. h4 {[%clk 0:02:32]}  h6 {[%clk 0:02:05]} 11. Nxg6 {[%clk 0:02:30]}  fxg6 {[%clk 0:02:06]} 12. Qd3 {[%clk 0:02:13]}  Kf7 {[%clk 0:02:05]} 13. Bh3 {[%clk 0:02:09]}  Bd6 {[%clk 0:01:54]} 14. Be3 {[%clk 0:01:58]}  Bg3+ {[%clk 0:01:43]} 15. Kf1 {[%clk 0:01:56]}  Bxh4 {[%clk 0:01:34]} 16. Kg2 {[%clk 0:01:36]}  g5 {[%clk 0:01:24]} 17. f4 {[%clk 0:01:33]}  gxf4 {[%clk 0:01:21]} 18. Bxf4 {[%clk 0:01:31]}  Qb6 {[%clk 0:01:16]} 19. Be3 {[%clk 0:01:17]}  Bg5 {[%clk 0:01:11]} 20. Rad1 {[%clk 0:01:03]}  Rhf8 {[%clk 0:01:08]} 21. Rhf1 {[%clk 0:01:01]}  Kg8 {[%clk 0:00:45]} 22. Bxg5 {[%clk 0:00:43]}  hxg5 {[%clk 0:00:46]} 23. e3 {[%clk 0:00:43]}  Ne7 {[%clk 0:00:26]} 24. Rd2 {[%clk 0:00:38]}  Rac8 {[%clk 0:00:26]} 25. Kh1 {[%clk 0:00:36]}  a6 {[%clk 0:00:26]} 26. Rh2 {[%clk 0:00:30]}  Qd6 {[%clk 0:00:21]} 27. Bg2 {[%clk 0:00:25]}  Kf7 {[%clk 0:00:16]} 28. e4 {[%clk 0:00:21]}  Rxc3 {[%clk 0:00:07]} 29. bxc3 {[%clk 0:00:19]}  dxe4 {[%clk 0:00:08]} 30. Bxe4 {[%clk 0:00:19]}  Ke8 {[%clk 0:00:07]} 31. Bg2 {[%clk 0:00:15]}  b5 {[%clk 0:00:06]} 32. Rh3 {[%clk 0:00:11]}  Kd7 {[%clk 0:00:06]} 33. Rhf3 {[%clk 0:00:11]}  Rh8+ {[%clk 0:00:06]} 34. Kg1 {[%clk 0:00:11]}  Nxg4 {[%clk 0:00:06]} 35. Rh3 {[%clk 0:00:09]}  Rxh3 {[%clk 0:00:04]} 36. Qxh3 {[%clk 0:00:10]}  Nf6 {[%clk 0:00:04]} 37. Qf3 {[%clk 0:00:10]}  Ned5 {[%clk 0:00:02]} 38. Re1 {[%clk 0:00:09]}  Nc7 {[%clk 0:00:02]} 39. Qb7 {[%clk 0:00:08]}  Ke7 {[%clk 0:00:02]} 40. Qf3 {[%clk 0:00:05]}  g4 {[%clk 0:00:02]} 41. Qe3 {[%clk 0:00:05]}  Ncd5 {[%clk 0:00:03]} 42. Qd2 {[%clk 0:00:04]}  Kd7 {[%clk 0:00:03]} 43. Re5 {[%clk 0:00:04]}  Qc7 {[%clk 0:00:02]} 44. Qg5 {[%clk 0:00:03]}  Qxc3 {[%clk 0:00:03]} 45. Qxg7+ {[%clk 0:00:04]}  Kd6 {[%clk 0:00:03]} 46. Bxd5 {[%clk 0:00:04]}  Qc1+ {[%clk 0:00:04]} 47. Kg2 {[%clk 0:00:04]}  Nxd5 {[%clk 0:00:04]} 48. Qf8+ {[%clk 0:00:04]}  Kd7 {[%clk 0:00:04]} 49. Qf7+ {[%clk 0:00:04]}  Ne7 {[%clk 0:00:04]} 50. Qxe6+ {[%clk 0:00:04]}  Kd8 {[%clk 0:00:05]} 51. Qxe7+ {[%clk 0:00:04]}  Kc8 {[%clk 0:00:06]} 52. Rc5+ {[%clk 0:00:04]}  Qxc5 {[%clk 0:00:07]} 53. dxc5 {[%clk 0:00:05]}  b4 {[%clk 0:00:03]} 54. c6 {[%clk 0:00:06]}  Kb8 {[%clk 0:00:03]} 55. Qd7 {[%clk 0:00:06]}  a5 {[%clk 0:00:02]} 56. Qb7# {[%clk 0:00:06]} 1-0


[Site "https://www.chess.com"]

[Event "Titled Tuesday Blitz November 08 Early 2022"]
[White "Ristic, Nebojsa B"]
[Black "Makhmudov, Shukhrat"]
[WhiteFideId "935468"]
[BlackFideId "14200775"]
[WhiteElo "2320"]
[BlackElo "2135"]
[Result "1-0"]
[Round "05"]
[TimeControl "180+1"]
[Date "2022.11.09"]
[WhiteClock "0:00:36"]
[BlackClock "0:00:04"]

1. d4 {[%clk 0:03:00]}  Nf6 {[%clk 0:02:59]} 2. Bf4 {[%clk 0:03:01]}  d5 {[%clk 0:02:53]} 3. e3 {[%clk 0:03:00]}  c5 {[%clk 0:02:52]} 4. Nf3 {[%clk 0:03:00]}  Nc6 {[%clk 0:02:52]} 5. Nbd2 {[%clk 0:03:01]}  h6 {[%clk 0:02:41]} 6. c3 {[%clk 0:02:56]}  c4 {[%clk 0:02:33]} 7. Ne5 {[%clk 0:02:54]}  Nxe5 {[%clk 0:02:25]} 8. dxe5 {[%clk 0:02:55]}  Ng8 {[%clk 0:02:13]} 9. e4 {[%clk 0:02:53]}  e6 {[%clk 0:02:11]} 10. Be2 {[%clk 0:02:49]}  b5 {[%clk 0:02:09]} 11. O-O {[%clk 0:02:48]}  Bb7 {[%clk 0:02:09]} 12. exd5 {[%clk 0:02:47]}  Bxd5 {[%clk 0:02:09]} 13. Bf3 {[%clk 0:02:45]}  Bc5 {[%clk 0:02:04]} 14. Ne4 {[%clk 0:02:45]}  Rc8 {[%clk 0:01:51]} 15. Nd6+ {[%clk 0:02:41]}  Bxd6 {[%clk 0:01:51]} 16. exd6 {[%clk 0:02:36]}  Nf6 {[%clk 0:01:44]} 17. Be5 {[%clk 0:02:33]}  O-O {[%clk 0:01:21]} 18. Bxf6 {[%clk 0:02:26]}  Qxf6 {[%clk 0:01:20]} 19. Bxd5 {[%clk 0:02:26]}  exd5 {[%clk 0:01:20]} 20. Qxd5 {[%clk 0:02:27]}  Rfd8 {[%clk 0:01:19]} 21. Rad1 {[%clk 0:02:26]}  a6 {[%clk 0:01:17]} 22. Rfe1 {[%clk 0:02:24]}  Rd7 {[%clk 0:01:13]} 23. Re4 {[%clk 0:02:18]}  Rcd8 {[%clk 0:01:13]} 24. Red4 {[%clk 0:02:17]}  Qe6 {[%clk 0:01:03]} 25. Qc6 {[%clk 0:02:18]}  Qe2 {[%clk 0:00:53]} 26. b3 {[%clk 0:01:45]}  Qxa2 {[%clk 0:00:48]} 27. bxc4 {[%clk 0:01:44]}  bxc4 {[%clk 0:00:48]} 28. g3 {[%clk 0:01:40]}  a5 {[%clk 0:00:46]} 29. Rxc4 {[%clk 0:01:35]}  Rxd6 {[%clk 0:00:40]} 30. Rxd6 {[%clk 0:01:33]}  Rxd6 {[%clk 0:00:40]} 31. Qxd6 {[%clk 0:01:21]}  Qxc4 {[%clk 0:00:40]} 32. Qd8+ {[%clk 0:01:21]}  Kh7 {[%clk 0:00:40]} 33. Qxa5 {[%clk 0:01:22]}  Qd3 {[%clk 0:00:29]} 34. Qe5 {[%clk 0:01:12]}  f6 {[%clk 0:00:27]} 35. Qd4 {[%clk 0:01:09]}  Qb1+ {[%clk 0:00:22]} 36. Kg2 {[%clk 0:01:10]}  Qb7+ {[%clk 0:00:22]} 37. Kf1 {[%clk 0:01:05]}  Qh1+ {[%clk 0:00:20]} 38. Ke2 {[%clk 0:01:05]}  Qxh2 {[%clk 0:00:20]} 39. Qe4+ {[%clk 0:00:59]}  Kh8 {[%clk 0:00:19]} 40. c4 {[%clk 0:00:58]}  Qh5+ {[%clk 0:00:19]} 41. g4 {[%clk 0:00:58]}  Qc5 {[%clk 0:00:18]} 42. Kf3 {[%clk 0:00:54]}  Qb4 {[%clk 0:00:15]} 43. Qd5 {[%clk 0:00:49]}  Qb3+ {[%clk 0:00:14]} 44. Kg2 {[%clk 0:00:50]}  Qb4 {[%clk 0:00:10]} 45. Kg3 {[%clk 0:00:46]}  Qb3+ {[%clk 0:00:09]} 46. f3 {[%clk 0:00:45]}  Qa2 {[%clk 0:00:09]} 47. Qd8+ {[%clk 0:00:43]}  Kh7 {[%clk 0:00:09]} 48. Qd3+ {[%clk 0:00:41]}  Kh8 {[%clk 0:00:09]} 49. c5 {[%clk 0:00:41]}  Qa5 {[%clk 0:00:08]} 50. Qd6 {[%clk 0:00:37]}  Qe1+ {[%clk 0:00:08]} 51. Kf4 {[%clk 0:00:37]}  Qd2+ {[%clk 0:00:04]} 52. Qxd2 {[%clk 0:00:36]} 1-0


[Site "https://www.chess.com"]

[Event "Titled Tuesday Blitz November 08 Early 2022"]
[White "Roque Sola, Gisela"]
[Black "Mihailidis, Anastasios"]
[WhiteFideId "5120241"]
[BlackFideId "4205588"]
[WhiteElo "1961"]
[BlackElo "2312"]
[Result "0-1"]
[Round "05"]
[TimeControl "180+1"]
[Date "2022.11.09"]
[WhiteClock "0:01:39"]
[BlackClock "0:01:56"]

1. e4 {[%clk 0:02:58]}  c5 {[%clk 0:02:59]} 2. Nf3 {[%clk 0:02:57]}  d6 {[%clk 0:02:58]} 3. d4 {[%clk 0:02:57]}  cxd4 {[%clk 0:02:59]} 4. Nxd4 {[%clk 0:02:58]}  Nf6 {[%clk 0:02:59]} 5. Nc3 {[%clk 0:02:58]}  g6 {[%clk 0:02:59]} 6. Bc4 {[%clk 0:02:57]}  Bg7 {[%clk 0:02:59]} 7. O-O {[%clk 0:02:53]}  O-O {[%clk 0:02:59]} 8. f3 {[%clk 0:02:51]}  Nc6 {[%clk 0:02:56]} 9. Be3 {[%clk 0:02:51]}  Qb6 {[%clk 0:02:54]} 10. Nf5 {[%clk 0:02:43]}  Qxb2 {[%clk 0:02:53]} 11. Na4 {[%clk 0:02:22]}  Qb4 {[%clk 0:02:49]} 12. Nxg7 {[%clk 0:02:10]}  Qxc4 {[%clk 0:02:46]} 13. Nb2 {[%clk 0:02:00]}  Qc3 {[%clk 0:02:44]} 14. Qc1 {[%clk 0:01:45]}  Rd8 {[%clk 0:02:20]} 15. Nd1 {[%clk 0:01:43]}  Qc4 {[%clk 0:02:10]} 16. Bh6 {[%clk 0:01:42]}  Nd4 {[%clk 0:02:06]} 17. Ne3 {[%clk 0:01:41]}  Qb5 {[%clk 0:01:57]} 18. c3 {[%clk 0:01:39]}  Ne2+ {[%clk 0:01:56]} 0-1


[Site "https://www.chess.com"]

[Event "Titled Tuesday Blitz November 08 Early 2022"]
[White "Roque Sola, Jose Luis"]
[Black "Muminova, Nafisa"]
[WhiteFideId "5120390"]
[BlackFideId "14201526"]
[WhiteElo "2117"]
[BlackElo "2258"]
[Result "0-1"]
[Round "05"]
[TimeControl "180+1"]
[Date "2022.11.09"]
[WhiteClock "0:00:02"]
[BlackClock "0:00:17"]

1. c4 {[%clk 0:02:52]}  Nf6 {[%clk 0:02:58]} 2. Nc3 {[%clk 0:02:49]}  e6 {[%clk 0:02:49]} 3. e4 {[%clk 0:02:49]}  c5 {[%clk 0:02:45]} 4. e5 {[%clk 0:02:48]}  Ng8 {[%clk 0:02:44]} 5. Nf3 {[%clk 0:02:48]}  Nc6 {[%clk 0:02:43]} 6. d4 {[%clk 0:02:48]}  cxd4 {[%clk 0:02:42]} 7. Nxd4 {[%clk 0:02:49]}  Nxe5 {[%clk 0:02:42]} 8. Ndb5 {[%clk 0:02:48]}  d6 {[%clk 0:02:18]} 9. c5 {[%clk 0:02:31]}  dxc5 {[%clk 0:02:07]} 10. Qxd8+ {[%clk 0:02:30]}  Kxd8 {[%clk 0:02:06]} 11. Bf4 {[%clk 0:02:29]}  f6 {[%clk 0:02:03]} 12. O-O-O+ {[%clk 0:02:29]}  Bd7 {[%clk 0:02:01]} 13. Bxe5 {[%clk 0:02:08]}  fxe5 {[%clk 0:02:01]} 14. Bc4 {[%clk 0:02:01]}  Ke7 {[%clk 0:01:57]} 15. Rhe1 {[%clk 0:01:43]}  Bxb5 {[%clk 0:01:54]} 16. Nxb5 {[%clk 0:01:38]}  Kf6 {[%clk 0:01:53]} 17. Nc7 {[%clk 0:01:33]}  Rc8 {[%clk 0:01:53]} 18. Nxe6 {[%clk 0:01:32]}  Nh6 {[%clk 0:01:47]} 19. Nxf8 {[%clk 0:01:19]}  Rhxf8 {[%clk 0:01:42]} 20. Rd6+ {[%clk 0:01:18]}  Ke7 {[%clk 0:01:20]} 21. Re6+ {[%clk 0:01:18]}  Kd7 {[%clk 0:01:20]} 22. R6xe5 {[%clk 0:01:07]}  Kc7 {[%clk 0:01:20]} 23. Re7+ {[%clk 0:01:03]}  Kb8 {[%clk 0:01:19]} 24. Rxg7 {[%clk 0:00:58]}  Nf5 {[%clk 0:01:09]} 25. Rxh7 {[%clk 0:00:53]}  Nd6 {[%clk 0:01:01]} 26. Bd5 {[%clk 0:00:44]}  Rxf2 {[%clk 0:01:01]} 27. Ree7 {[%clk 0:00:41]}  Rcf8 {[%clk 0:00:50]} 28. Bxb7 {[%clk 0:00:20]}  Rf1+ {[%clk 0:00:44]} 29. Kc2 {[%clk 0:00:20]}  R8f2+ {[%clk 0:00:44]} 30. Kb3 {[%clk 0:00:20]}  c4+ {[%clk 0:00:41]} 31. Ka3 {[%clk 0:00:19]}  c3 {[%clk 0:00:31]} 32. Rh8+ {[%clk 0:00:18]}  Rf8 {[%clk 0:00:30]} 33. Rxf8+ {[%clk 0:00:17]}  Rxf8 {[%clk 0:00:29]} 34. bxc3 {[%clk 0:00:08]}  Nxb7 {[%clk 0:00:29]} 35. g4 {[%clk 0:00:07]}  Rf2 {[%clk 0:00:21]} 36. h4 {[%clk 0:00:07]}  Rg2 {[%clk 0:00:21]} 37. g5 {[%clk 0:00:07]}  Rg4 {[%clk 0:00:21]} 38. Rh7 {[%clk 0:00:07]}  Nd6 {[%clk 0:00:19]} 39. Rh6 {[%clk 0:00:04]}  Nf5 {[%clk 0:00:18]} 40. Rh8+ {[%clk 0:00:02]}  Kc7 {[%clk 0:00:18]} 41. Rh7+ {[%clk 0:00:02]}  Kb6 {[%clk 0:00:17]} 0-1


[Site "https://www.chess.com"]